Cogmind - Beta 14 X2 @@@ ROGUE MODE // 2024.08.05 @ 19:28:03 Player: Decinym Result: Destroyed by AC-P8B(R) with Subdweller Machine Gun Performance ------------- Evolutions (0) 0 Regions Visited (2) 400 Robots Destroyed (13) 65 Value Destroyed (343) 343 Prototype IDs (0) 0 Alien Tech Used (0) 0 Bonus (0) 0 TOTAL SCORE: 808 Bonus ------- None Cogmind --------- Core Integrity 0/250 Matter 289/300 Energy 250/250 System Corruption 0% Temperature Cool (0) Movement Treading (320) Ox2 Location -10/Subcaves Parts ------- > --- POWER (1) -------- Ion Engine > --- PROPULSION (2) --- Light Treads Light Treads > --- UTILITY (2) ------ Disposable Heat Sink Huge Storage Unit > --- WEAPON (2) ------- Spread Laser Spread Laser > --- INVENTORY (25) --- Ion Engine Light Ion Engine Light Nuclear Core Light Treads Aluminum Leg Improved Aluminum Leg Improved Aluminum Leg Wheel Compact Wheel Disposable Heat Sink Large Storage Unit Huge Storage Unit EM Pulse Gun Spread Laser Spread Laser Light Assault Rifle Grenade Launcher Mini Grenade Launcher Peak State ------------ > --- POWER ------------ Ion Engine > --- PROPULSION ------- Improved Aluminum Leg Improved Aluminum Leg > --- UTILITY ---------- Disposable Heat Sink Huge Storage Unit > --- WEAPON ----------- Subdweller Laser Battle Rifle > --- INVENTORY -------- Ion Engine Light Ion Engine Light Nuclear Core Light Treads Light Treads Light Treads Aluminum Leg Improved Aluminum Leg Improved Aluminum Leg Wheel Compact Wheel Disposable Heat Sink Large Storage Unit Huge Storage Unit EM Pulse Gun Spread Laser Spread Laser Spread Laser Spread Laser Light Assault Rifle Grenade Launcher Mini Grenade Launcher [Rating: 15] Favorites ----------- Power Ion Engine Engine Ion Engine Propulsion Improved Aluminum Leg Treads Light Treads Leg Improved Aluminum Leg Utility Huge Storage Unit Device Disposable Heat Sink Storage Huge Storage Unit Protection Light Armor Plating Weapon Light Assault Rifle Energy Gun Spread Laser Ballistic Gun Light Assault Rifle Launcher Mini Grenade Launcher Build | -11 -10 -10 ------- Run | Yrd Mat Sub Slots Evolved . | . . . Power . | . . . Propulsion . | . . . Utility . | . . . Weapon . | . . . Parts Attached 14 | . 6 8 Power . | . . . Engine . | . . . Core . | . . . Reactor . | . . . Propulsion 4 | . 2 2 Treads 2 | . . 2 Leg 2 | . 2 . Wheel . | . . . Hover . | . . . Flight . | . . . Utility 5 | . 4 1 Device 1 | . . 1 Storage 3 | . 3 . Processor . | . . . Hackware . | . . . Protection 1 | . 1 . Artifact . | . . . Weapon 5 | . . 5 Energy Gun 3 | . . 3 Energy Cannon . | . . . Ballistic Gun 1 | . . 1 Ballistic Cannon . | . . . Launcher 1 | . . 1 Special Weapon . | . . . Impact Weapon . | . . . Slashing Weapon . | . . . Piercing Weapon . | . . . Special Melee Weapon . | . . . Unidentified Prototypes . | . . . Parts Lost 3 | . . 3 Power . | . . . Propulsion . | . . . Utility 1 | . . 1 Weapon 2 | . . 2 Highest Loss Streak 2 | . . 2 To Critical Strikes 1 | . . 1 Average Slot Usage (%) 97 | . 98 96 Engine 14 | . 14 14 Treads 7 | . . 13 Leg 20 | . 28 14 Device 5 | . . 9 Storage 14 | . 15 14 Protection 5 | . 11 1 Energy Gun 11 | . . 20 Ballistic Gun 13 | . 28 3 Launcher 2 | . . 4 Naked Turns . | . . . Heaviest Build 93 | 12 90 93 Greatest Support 40 | 20 26 40 Greatest Overweight (x) 3 | . 3 3 Average Overweight (x) 2 | . 2 2 Largest Inventory Capacity 25 | . 25 25 Average Capacity 23 | . 21 25 Most Carried 23 | . 22 23 Average Carried 17 | . 13 20 Final Capacity 25 | 8 25 25 Final Carried 22 | 6 22 18 Class Distribution -------------------- 100% | Mutant Dominant Class ---------------- Mutant | -10/Materials Mutant | -10/Subcaves Resources | -11 -10 -10 ----------- Run | Yrd Mat Sub Matter Collected 525 | 177 121 227 Remotely . | . . . Salvage Created 269 | . 128 141 Parts 27 | . 10 17 Haulers Intercepted 1 | . 1 . Recyclers Shooed . | . . . Parts Field Recycled . | . . . Retrieved Matter . | . . . Parts Self-Destructed 5 | . . 5 Prevented . | . . . Kills | -11 -10 -10 ------- Run | Yrd Mat Sub Combat Hostiles Destroyed 10 | . 2 8 Guns 4 | . 2 2 AOE 6 | . . 6 Classes Destroyed 5 | . 2 3 Hauler 1 | . 1 . Turret 2 | . . 2 Swarmer 4 | . . 4 Grunt 2 | . 2 . Subdweller 4 | . . 4 Best Kill Streak 4 | . 2 4 Combat Bots Only 4 | . 2 4 Max Kills in Single Turn 2 | . 1 2 Gunslinging . | . . . Exploded 2 | . . 2 Melee . | . . . Uniques/NPCs Destroyed . | . . . Combat | -11 -10 -10 -------- Run | Yrd Mat Sub Hostile Shots Fired 92 | . 18 74 Missed 29 | . 5 24 Damage Taken 1016 | . 188 828 Core 256 | . 61 195 Absorbed by Shields . | . . . Core Remaining (%) 100 | 100 . . Volleys Fired 51 | . 19 32 Largest 2 | . 2 2 Hottest 130 | . 40 130 Shots Fired 87 | . 38 49 Gun 73 | . 38 35 Cannon . | . . . Launcher 14 | . . 14 Special . | . . . Kinetic 49 | . 38 11 Thermal 24 | . . 24 Explosive 14 | . . 14 Electromagnetic . | . . . Robot Hit Streak 7 | . 3 7 Robot Miss Streak 4 | . 2 4 Penetration Max . | . . . Secondary Targets 1 | . 1 . Max Gunslinging Chain 1 | . 1 . Shots Hit Robots 56 | . 23 33 Core Hits 33 | . 9 24 Critical Kills . | . . . Critical Parts Destroyed . | . . . Critical Strikes . | . . . Melee Attacks . | . . . Impact . | . . . Slashing . | . . . Piercing . | . . . Sneak Attacks . | . . . Combat Hostiles . | . . . Follow-up Attacks . | . . . Damage Inflicted 1294 | . 197 1097 Guns 622 | . 197 425 Cannons . | . . . Explosions 672 | . . 672 Melee . | . . . Ramming . | . . . Kinetic 316 | . 197 119 Thermal 306 | . . 306 Explosive 672 | . . 672 Electromagnetic . | . . . Impact . | . . . Slashing . | . . . Piercing . | . . . Highest Corruption . | . . . Average Corruption . | . . . Corruption Purged . | . . . Corruption Blocked . | . . . Overload Shots . | . . . Overflow Damage 7 | . . 7 Projectiles . | . . . Explosions 7 | . . 7 Melee . | . . . Knockbacks . | . . . Impact . | . . . Kinetic . | . . . Secondary . | . . . Self-Inflicted Damage 113 | . . 113 Shots 3 | . . 3 Rammed . | . . . Targets Rammed . | . . . Kicked . | . . . Crushed . | . . . Highest Temperature 45 | . 21 45 Average Temperature 10 | . 9 11 Received Heat Transfer 204 | . 102 102 Siege Activations . | . . . Robots Corrupted . | . . . Combat Hostiles . | . . . Parts Fried . | . . . Impact Corruptions . | . . . Robots Melted . | . . . Combat Hostiles . | . . . Parts Melted . | . . . Heat Transferred 360 | . . 360 Parts Sabotaged . | . . . Parts Stolen . | . . . Parts Stripped . | . . . Power Chain Reactions . | . . . Alert | -11 -10 -10 ------- Run | Yrd Mat Sub Peak Influence 73 | . 73 . Initial . | . . . Average 39 | . 39 . Maximum Alert Level . | . . . Low Security (%) 100 | . 100 . Level 1 . | . . . Level 2 . | . . . Level 3 . | . . . Level 4 . | . . . Level 5 . | . . . High Security . | . . . Max Security . | . . . Squads Dispatched . | . . . Investigation . | . . . Extermination . | . . . Reinforcement . | . . . Assault . | . . . Garrison . | . . . Intercept . | . . . Searches Triggered . | . . . Construction Impeded . | . . . Haulers Reinforced . | . . . Active Scanning Responses . | . . . Cargo Convoy Interrupts . | . . . Stealth | -11 -10 -10 --------- Run | Yrd Mat Sub Distress Signals . | . . . Communications Jammed . | . . . Distress Signals . | . . . Times Spotted 22 | . 8 14 Peak Tracking Total 4 | . 2 4 Tactical Retreats 2 | . . 2 Traps | -11 -10 -10 ------- Run | Yrd Mat Sub Traps Triggered 1 | . . 1 Indirectly . | . . . Trap Hack Attempts . | . . . Triggered . | . . . Disarmed . | . . . Reprogrammed . | . . . Reused . | . . . Traps Extracted . | . . . Installed . | . . . Triggered . | . . . Machines | -11 -10 -10 ---------- Run | Yrd Mat Sub Machines Disabled 3 | . . 3 Max in Single Turn 2 | . . 2 Machines Repaired . | . . . Machines Dismantled . | . . . Machines Sabotaged . | . . . Overloaded Fab Kills . | . . . Hacking | -11 -10 -10 --------- Run | Yrd Mat Sub Machines Accessed 2 | . 2 . Terminals 2 | . 2 . Fabricators . | . . . Repair Stations . | . . . Recycling Units . | . . . Scanalyzers . | . . . Garrison Access . | . . . Total Hacks 6 | . 6 . Successful 2 | . 2 . Failed 4 | . 4 . Catastrophic . | . . . Database Lockouts . | . . . Manual 6 | . 6 . Terminals 6 | . 6 . Fabricators . | . . . Repair Stations . | . . . Recycling Units . | . . . Scanalyzers . | . . . Garrison Access . | . . . Terminal Hacks 1 | . 1 . Branch Access Points 1 | . 1 . Fabricator Hacks . | . . . Repair Station Hacks . | . . . Recycling Unit Hacks . | . . . Scanalyzer . | . . . Garrison Access Hacks . | . . . Unauthorized Hacks 1 | . 1 . Terminals 1 | . 1 . Botnet 1 | . 1 . Fabricators . | . . . Repair Stations . | . . . Recycling Units . | . . . Scanalyzers . | . . . Garrison Access . | . . . Data Cores Recovered . | . . . Used . | . . . Hacking Detections 1 | . 1 . Full Trace Events . | . . . Feedback Events . | . . . Feedback Blocked . | . . . Robot Schematics Acquired . | . . . Robots Built . | . . . Authchips . | . . . Time . | . . . Total Robot Build Rating . | . . . Part Schematics Acquired . | . . . Parts Built . | . . . Authchips . | . . . Time . | . . . Total Part Build Rating . | . . . Parts Repaired . | . . . Time . | . . . Parts Recycled . | . . . Recycled Matter . | . . . Retrieved Matter . | . . . Retrieved Components . | . . . Parts Scanalyzed . | . . . Part Schematics Acquired . | . . . Parts Damaged . | . . . Bothacking | -11 -10 -10 ------------ Run | Yrd Mat Sub Used RIF Installer . | . . . Robots Hacked . | . . . Non-combat . | . . . Combat . | . . . Robot Hacks Applied . | . . . Relay Couplers Released . | . . . Fabnet Peak Effective % . | . . . Robots Rewired . | . . . Allies Hacked . | . . . Hacks Repelled . | . . . Allies | -11 -10 -10 -------- Run | Yrd Mat Sub Total Allies . | . . . Largest Group . | . . . Highest-Rated Group . | . . . Highest-Rated Ally . | . . . Total Orders . | . . . Ally Attacks . | . . . Total Damage . | . . . Kills . | . . . Allies Corrupted . | . . . Allies Melted . | . . . Intel | -11 -10 -10 ------- Run | Yrd Mat Sub Robot Analysis Total . | . . . Derelict Logs Recovered . | . . . Drone Launches . | . . . Drone Recoveries . | . . . Exploration | -11 -10 -10 ------------- Run | Yrd Mat Sub Turns Passed 1961 | . 858 1103 Spaces Moved 606 | 1 295 310 Core . | . . . Treads 159 | . . 159 Legs 447 | 1 295 151 Wheels . | . . . Hover . | . . . Flight . | . . . Fastest Speed 120 | 120 120 320 Average Speed 296 | 120 267 324 Slowest Speed 330 | 120 330 330 Overloaded Moves . | . . . Propulsion Burnouts . | . . . Robots Hopped . | . . . Cave-ins Triggered . | . . . Exploration Rate (%) 25 | 2 48 25 Regions Visited 2 Branch Regions 1 Pre-discovered Areas . | . . . Known Exits Taken . | . . . Unknown Exits Taken 2 | 1 1 . Scrap Searched 3 | . . 3 Spaces Dug 8 | . . 8 Terrain Destroyed 75 | . . 75 Melee . | . . . Projectile . | . . . AOE 75 | . . 75 Terrain Rammed . | . . . Walls Destroyed . | . . . Machines Disabled . | . . . Actions | -11 -10 -10 --------- Run | Yrd Mat Sub Total 698 | . 340 358 Wait 4 | . . 4 Move 604 | . 294 310 Hop . | . . . Pick Up 17 | . 16 1 Fast Attach 4 | . 3 1 Attach 5 | . . 5 Detach . | . . . Swap 5 | . 3 2 Drop 8 | . 5 3 Fire 51 | . 19 32 Melee . | . . . Ram . | . . . Kick . | . . . Crush . | . . . Escape Stasis . | . . . Rewire . | . . . Trap . | . . . Miscellaneous . | . . . Route ------- -11/Scrapyard -10/Materials (discovered 3 exits: [*Mat] / *Min / [*Sub]) -10/Subcaves (discovered 2 exits: [*Mat] / [*Rec]) History --------- Turn | Location | Event 1 | -11/Scrapyard | Discovered new exit (range 0) 1 | -11/Scrapyard | Entered Materials 10 | -10/Materials | Identified exit to Mines 305 | -10/Materials | Build established: Mutant 390 | -10/Materials | Discovered new exit (range 16) 801 | -10/Materials | Derelicts attacked the area 826 | -10/Materials | Discovered new exit (range 6) 859 | -10/Materials | Entered Subcaves 860 | -10/Subcaves | Ambushed by Subdwellers from Twisted Machinery 985 | -10/Subcaves | Shifting Twisted Machinery released Mak. Flight Unit 1000 | -10/Subcaves | A swath of the cavern ceiling suddenly collapsed 1072 | -10/Subcaves | Shifting Twisted Machinery released Battle Rifle 1176 | -10/Subcaves | Discovered new exit (range 12) 1326 | -10/Subcaves | Discovered new exit (range 9) 1369 | -10/Subcaves | Core integrity fell below 50% 1378 | -10/Subcaves | Core integrity fell below 20% 1962 | -10/Subcaves | Destroyed by AC-P8B(R) with Subdweller Machine Gun Last Messages --------------- 01425_ Acquired 42 matter. 01429_ Dropped Imp. Aluminum Leg. 01433_ Subatomizers dissect the Sub. Optics. 01451_ Searching scrap... 01451_ Found Sub. Monowheel. 01451_ Found 32 Matter. 01452_ Acquired 32 matter. 01454_ Searching scrap... 01454_ Found Sub. Power Source. 01454_ Found Battle Rifle. 01454_ Found 40 Matter. 01455_ Acquired 40 matter. 01457_ Searching scrap... 01457_ Found Riot Gun. 01457_ Found 62 Matter. 01458_ Acquired 62 matter. 01485_ Subatomizers dissect the Sub. Optics. 01748_ Acquired 12 matter. 01851_ HI-UWO(R) destroyed. 01860_ Acquired 16 matter. Map ----- +----------------------------------------------------+ | ?????????????????????????????????????????? | | ?????????????????????????????????????????? | | ?????????????????????????????????????????? | | ?????????????????????????????????????????? | | ?????????????????????????????????????????? | | ?????????????????????????????????????????? | | ?????????????????????????????????????????? | | ?????????????????????????????????????????? | | ?????????????????????????????????????????? | | ?????????????????????????????????????????? | | ?????????????????????????????????????????? | | ?????????????????????????????????????????? | | ?????????????????????????????????????????? | | ???????????????###???????????????????????? | | ???????????????? ???????????????????????? | | ????????????????# ??????????????????????? | | ???????????????## "??????????????????????? | | ???????????????# ""??????????????????????? | | ???????????????# ##????????????????????? | | ????????????????# ""##???????????????????? | | ????????????""### " ##??????????????????? | | ???????????#" " """ ####???????????????? | | ????#####??#"## ""##" #???????????????? | | ????# #?????## "### #???????????????? | | ?????# #?????## "## ##??????????????? | | ????## ####### R @#??????????????? | | ????# ## # #?????????????? | | ????# ### # ### #?????????????? | | ???## ##?#### #####?????????????? | | ??## ##???## ###???????????????? | | ?## ## ##????# # ##??????????????? | | ?# ####?????## ##?????????????? | | ## #?????##### #?????????????? | | # ##????# ##?????????????? | | #????# #??????????????? | | #????# #??????????????? | | #????## # #??????????????? | | #### ##?????## #### #??????????????? | | ### #??????## ##???# #?????????????? | | ####??## #????? #?????????????? | | #?## #????? ##?????????????? | | ## # # ##?# ##???? #??????????????? | | ###### #### ##???? ??????????????? | | ?????# ## #?# ##?????????????? | | ?????# & ## ##??????????????? | | ?????## #???????????????? | | #?????## ## #???????????????? | | #??????#########?# #???????????????? | | #????????????????# ??????????????? | | #?????????????????# #?????????????? | +----------------------------------------------------+ Best States ------------- Heat Dissipation 25 Coolant Potential 50 Energy Generation 10 Energy Capacity 250 Matter Stores 300 Matter Capacity 300 Sight Range 16 Terrain Scan Density 10 Armor Coverage 150 Evasion (%) 55 Recoil Reduction 2 Item Schematics ----------------- None Robot Schematics ------------------ None Fabricated ------------ Nothing Alien Tech Used ----------------- None Achievements -------------- None Challenges ------------ None Game ------ Seed CoilMagneticPropulsion Manual? 0 Play Time 00:06:30 Cumulative 421.0 hours Start 2024.08.05 @ 19:18:17 End 2024.08.05 @ 19:28:03 Sessions 1 Manual Loads 0 Difficulty Rogue Special Mode None Game No. 429 Rogue 429 Adventurer 0 Explorer 0 Win Type - Total 30 Types 16/3/5/1/2/0/3/0/0 Lore% 82 Gallery% 87 Achievement% 82 Wizard Run 0 Options --------- Layout 0 ASCII 0 Keyboard 0 Movement Arrows Keybinds 0 Fullscreen 2 Font 24/Smallcaps Map View 76x50 Zoom Use 0% Tactical HUD 1 Map Filters NONE Filters NONE Steam 1 RUN: cb1a7a49-0fdb-4e69-a63f-4db16cfffd7d